[Event "DFMM-LV 2023"]
[Site "Braunfels"]
[Date "2023.06.09"]
[Round "2.30"]
[White "Spiel, Marianne"]
[Black "Zemke, Christine"]
[Result "0-1"]
[Annotator "NA RC COMBH"]
[ECO "B01"]
[WhiteElo "1840"]
[BlackElo "1682"]
[PlyCount "100"]
[EventDate "2023.06.09"]
[EventType "team-tourn"]
[EventCountry "GER"]
[SourceTitle "playchess.com"]
[Source "ChessBase"]
[SourceQuality "1"]
[TimeControl "40/5400+30:1800+30"]

1. e4 {[%emt 0:00:01]} d5 {[%emt 0:00:11]} 2. exd5 {[%emt 0:00:21]} Qxd5 {[%emt 0:00:08]} 3. Nc3 {[%emt 0:00:27]} Qa5 {[%emt 0:00:10]} 4. d4 {[%emt 0:01:43]} c6 {[%emt 0:02:43]} 5. Bf4 {[%emt 0:07:01]} Nf6 {[%emt 0:02:45]} 6. Qd2 {[%emt 0:02:33]} Nd5 {[%emt 0:04:48]} 7. Bg3 {[%emt 0:12:24]} Bf5 {[%emt 0:09:16]} 8. Bc4 {[%emt 0:09:07]} Nxc3 {[%emt 0:07:47]} 9. bxc3 {[%emt 0:01:17]} Nd7 {[%emt 0:00:58]} 10. Ne2 {[%emt 0:03:43]} e6 {[%emt 0:02:15]} 11. O-O {[%emt 0:05:29]} Be7 {[%emt 0:02:01]} 12. Bb3 {[%emt 0:10:33]} O-O {[%emt 0:00:45]} 13. f3 {[%emt 0:04:25]} Rac8 {[%emt 0:07:34]} 14. Bf2 {[%emt 0:03:54]} h6 {[%emt 0:00:56]} 15. Ng3 {[%emt 0:02:19]} Bg6 {[%emt 0:00:33]} 16. Bc4 {[%emt 0:04:43]} Nf6 {[%emt 0:08:08]} 17. Bd3 {[%emt 0:04:14]} Bxd3 {[%emt 0:07:46]} 18. Qxd3 {[%emt 0:01:38]} c5 {[%emt 0:00:55]} 19. Ne4 {[%emt 0:02:42]} Rfd8 {[%emt 0:01:26]} 20. Rfd1 {[%emt 0:02:42]} e5 {[%emt 0:39:25]} 21. Nxf6+ {[%emt 0:06:33]} Bxf6 {[%emt 0:00:00]} 22. d5 {[%emt 0:00:48]} c4 {[%emt 0:00:00]} 23. Qe4 {[%emt 0:00:50]} b6 {[%emt 0:00:00]} 24. Be1 {[%emt 0:00:49]} Rd6 {[%emt 0:00:00]} 25. a4 {[%emt 0:02:53]} Rc5 {[%emt 0:00:00]} 26. Bh4 {[%emt 0:02:09]} Bxh4 {[%emt 0:00:00]} 27. Qxh4 {[%emt 0:00:02]} Qxc3 {[%emt 0:00:00]} 28. Qe4 {[%emt 0:03:10]} Rdxd5 {[%emt 0:00:00]} 29. Re1 {[%emt 0:01:04]} Rd2 {[%emt 0:00:00]} 30. Ra2 {[%emt 0:02:08]} Rcd5 {[%emt 0:00:00]} 31. h3 {[%emt 0:00:28]} Qd4+ {[%emt 0:00:00]} 32. Qxd4 {[%emt 0:00:51]} R2xd4 {[%emt 0:00:00]} 33. c3 {[%emt 0:00:37]} Rd1 {[%emt 0:00:00]} 34. Rae2 {[%emt 0:01:10]} f6 {[%emt 0:00:00]} 35. Kf2 {[%emt 0:00:15]} Rxe1 {[%emt 0:00:00]} 36. Kxe1 {[%emt 0:00:22]} Rd3 {[%emt 0:00:00]} 37. Rc2 {[%emt 0:00:34]} Kf7 {[%emt 0:00:00]} 38. Ke2 {[%emt 0:00:14]} Ke6 {[%emt 0:00:00]} 39. a5 {[%emt 0:01:24]} b5 {[%emt 0:00:00]} 40. Ke1 {[%emt 0:02:00]} Kd5 {[%emt 0:00:00]} 41. Ke2 {[%emt 0:30:45]} Kc5 {[%emt 0:29:34]} 42. Rc1 {[%emt 0:00:00]} a6 {[%emt 0:00:00]} 43. Rc2 {[%emt 0:00:00]} b4 {[%emt 0:00:00]} 44. cxb4+ {[%emt 0:00:00]} Kxb4 {[%emt 0:00:00]} 45. Rb2+ {[%emt 0:00:00]} Rb3 {[%emt 0:00:00]} 46. Ra2 {[%emt 0:00:00]} c3 {[%emt 0:00:00]} 47. Kd1 {[%emt 0:00:00]} Rb1+ {[%emt 0:00:00]} 48. Kc2 {[%emt 0:00:00]} Rg1 {[%emt 0:00:00]} 49. Kd3 {[%emt 0:00:00]} Kb3 {[%emt 0:00:00]} 50. Re2 {[%emt 0:00:00]} Rd1+ {[%emt 0:15:26]} 0-1

[Event "DFMM-LV 2023"]
[Site "Braunfels"]
[Date "2023.06.09"]
[Round "2.32"]
[White "Albayrak, Aylin"]
[Black "Perovic-Ottstadt, Sanja"]
[Result "1-0"]
[Annotator "NA RC COMBH"]
[ECO "D35"]
[WhiteElo "1690"]
[BlackElo "1443"]
[PlyCount "49"]
[EventDate "2023.06.09"]
[EventType "team-tourn"]
[EventCountry "GER"]
[SourceTitle "playchess.com"]
[Source "ChessBase"]
[SourceQuality "1"]
[TimeControl "40/5400+30:1800+30"]

1. d4 {[%emt 0:00:05]} e6 {[%emt 0:00:12]} 2. c4 {[%emt 0:00:12]} d5 {[%emt 0:00:09]} 3. Nf3 {[%emt 0:00:09]} Nf6 {[%emt 0:00:11]} 4. Nc3 {[%emt 0:00:13]} Be7 {[%emt 0:00:27]} 5. cxd5 {[%emt 0:00:52]} exd5 {[%emt 0:02:04]} 6. h3 {[%emt 0:01:05]} c6 {[%emt 0:00:33]} 7. Bf4 {[%emt 0:00:40]} O-O {[%emt 0:00:23]} 8. e3 {[%emt 0:01:01]} Bf5 {[%emt 0:00:48]} 9. g4 {[%emt 0:02:22]} Bg6 {[%emt 0:02:47]} 10. Ne5 {[%emt 0:04:32]} Nbd7 {[%emt 0:00:45]} 11. Nxg6 {[%emt 0:00:54]} hxg6 {[%emt 0:00:23]} 12. Bd3 {[%emt 0:02:13]} Re8 {[%emt 0:00:48]} 13. Qc2 {[%emt 0:00:54]} Bb4 {[%emt 0:00:55]} 14. O-O-O {[%emt 0:01:34]} Nf8 {[%emt 0:02:27]} 15. Ne2 {[%emt 0:07:13]} Ne6 {[%emt 0:03:43]} 16. Bh2 {[%emt 0:04:09]} Nd7 {[%emt 0:06:39]} 17. h4 {[%emt 0:02:51]} Qxh4 {[%emt 0:07:25]} 18. Bg3 {[%emt 0:00:21]} Qd8 {[%emt 0:01:17]} 19. Rh2 {[%emt 0:01:46]} Kf8 {[%emt 0:01:24]} 20. a3 {[%emt 0:01:04]} Ba5 {[%emt 0:00:55]} 21. Bd6+ {[%emt 0:00:19]} Kg8 {[%emt 0:01:49]} 22. Rdh1 {[%emt 0:00:28]} f5 {[%emt 0:03:22]} 23. gxf5 {[%emt 0:00:28]} gxf5 {[%emt 0:00:49]} 24. Bxf5 {[%emt 0:00:31]} Qf6 {[%emt 0:05:18]} 25. Bg6 {[%emt 0:01:40]} 1-0

[Event "DFMM-LV 2023"]
[Site "Braunfels"]
[Date "2023.06.09"]
[Round "2.33"]
[White "Rath, Alina"]
[Black "Wagner, Margarethe"]
[Result "1/2-1/2"]
[Annotator "TA"]
[ECO "A14"]
[WhiteElo "2051"]
[BlackElo "1831"]
[PlyCount "61"]
[EventDate "2023.06.09"]
[EventType "team-tourn"]
[EventCountry "GER"]
[SourceTitle "playchess.com"]
[Source "ChessBase"]
[SourceQuality "1"]
[TimeControl "40/5400+30:1800+30"]

{[%evp 15,61,-5,0,-30,11,-21,5,-18,0,-16,-30,-25,-30,-23,-19,-33,0,-19,-20,-27,62,-46,-29,-38,-39,-61,-16,-20,-39,-69,36,31,31,0,0,0,0,-8,0,-47,-17,-17,0,0,-6,-1,0,-74]} 1. c4 {[%emt 0:00:04]} e6 {[%emt 0:00:06]} 2. g3 {[%emt 0:00:08]} d5 {[%emt 0:00:07]} 3. Bg2 {[%emt 0:00:00]} Nf6 4. Nf3 {[%emt 0:00:14]} Be7 5. O-O {[%emt 1:32:34]} O-O {[%emt 1:32:47]} 6. b3 {[%emt 0:00:00]} c5 {[%emt 0:00:00]} 7. Bb2 {[%emt 0:00:00] 7.cxd5 gains popularity.} d4 {[%emt 0:00:00]} 8. e3 {[%emt 0:00:00]} Nc6 {[%emt 0:00:00]} 9. d3 {[%emt 0:00:00] A14: English Opening: 1...e6 with b3 by White.} Rb8 {[%emt 0:00:00]} 10. Re1 {[%emt 0:00:00] [#]} a6 $146 {[%emt 0:00:00]} ({Predecessor:} 10... e5 11. exd4 exd4 12. Ne5 Nxe5 13. Rxe5 Bd6 14. Re1 Bf5 15. Na3 a6 16. Nc2 Qd7 17. b4 b6 18. a3 Bh3 19. Qf3 Bxg2 20. Qxg2 Qf5 21. Rad1 h6 {½-½ Schermer,A-Wagenaar,J Haarlem ACCOM op2 1987 (6)}) 11. Na3 {[%emt 0:00:00]} Bd6 {[%emt 0:00:00]} 12. Qd2 {[%emt 0:00:00]} Re8 {[%emt 0:00:00]} 13. exd4 {[%emt 0:00:00]} cxd4 {[%emt 0:00:00] Threatening ...Bb4.} 14. Nc2 {[%emt 0:00:00] Wards off Bb4} e5 {[%emt 0:00:00]} 15. b4 {[%emt 0:00:00]} b6 {[%emt 0:00:00]} 16. a4 {[%emt 0:00:00]} a5 {[%emt 0:00:00][%cal Ra5b4]} 17. Ba3 {[%emt 0:00:00]} Bb7 {[%emt 0:00:00]} ({Black should try} 17... axb4 $11 18. Nxb4 Na5) 18. Rab1 {[%emt 0:00:00]} (18. b5 $14) 18... axb4 $15 {[%emt 0:00:00]} 19. Nxb4 {[%emt 0:00:00]} Nxb4 {[%emt 0:00:00]} 20. Bxb4 {[%emt 0:00:00]} Bxb4 {[%emt 0:00:00]} (20... Bc7 $5) 21. Qxb4 {[%emt 0:00:00]} Nd7 {[%emt 0:00:00]} 22. Red1 {[%emt 0:00:00]} Bxf3 {[%emt 0:00:00]} (22... Qf6 $15 23. Ne1 Bxg2 24. Nxg2 Qf5) 23. Bxf3 $14 {[%emt 0:00:00]} Qc7 {[%emt 0:00:00] Wards off Bc6. Black is weak on the light squares} 24. Ra1 {[%emt 0:00:00]} g6 {[%emt 0:00:00]} 25. Qb5 {[%emt 0:00:00]} Nc5 {[%emt 0:00:00]} 26. Bd5 {[%emt 0:00:00]} Kf8 {[%emt 0:00:00]} 27. f3 {[%emt 0:00:00]} (27. a5 $11) 27... Re7 {[%emt 0:00:00]} 28. Ra3 {[%emt 0:00:00] The position is equal.} Qd7 {[%emt 0:00:00]} 29. Qxd7 {[%emt 0:00:00]} Rxd7 {[%emt 0:00:00]} 30. Rb1 {[%emt 0:00:00]} Ra7 {[%emt 0:00:00]} 31. Bc6 {[%emt 0:01:18] Weighted Error Value: White=0.21 (precise) /Black=0.27 (precise)} (31. a5 $1 $11) 1/2-1/2

[Event "DFMM-LV 2023"]
[Site "Braunfels"]
[Date "2023.06.09"]
[Round "2.34"]
[White "Albayrak, Nese Pinar"]
[Black "Skogvall, Martina"]
[Result "1/2-1/2"]
[Annotator "TA"]
[ECO "C07"]
[WhiteElo "1763"]
[BlackElo "1979"]
[PlyCount "90"]
[EventDate "2023.06.09"]
[EventType "team-tourn"]
[EventCountry "GER"]
[SourceTitle "playchess.com"]
[Source "ChessBase"]
[SourceQuality "1"]
[TimeControl "40/5400+30:1800+30"]

{[%evp 19,90,18,35,-9,-8,0,-9,-10,37,-31,-9,-10,0,0,0,-86,0,-67,-77,-68,-9,0,0,-38,-36,-36,-37,-29,-35,-35,-16,-38,0,0,0,0,0,0,0,0,0,0,0,-2,0,0,0,0,0,0,0,0,0,0,0,0,0,0,0,0,5,0,0,0,0,0,5,0,0,0,0,0,0]} 1. e4 {[%emt 0:00:03]} e6 {[%emt 0:00:07]} 2. d4 {[%emt 0:00:04]} d5 {[%emt 0:00:03]} 3. Nd2 {[%emt 0:00:09]} c5 {[%emt 0:00:07]} 4. exd5 {[%emt 0:00:37]} Qxd5 {[%emt 0:00:07]} 5. Ngf3 {[%emt 0:00:23]} Nf6 {[%emt 0:00:15]} 6. Bc4 {[%emt 0:01:30]} Qd6 {[%emt 0:00:07]} 7. Nb3 {[%emt 0:08:38]} cxd4 {[%emt 0:00:42]} 8. O-O {[%emt 0:00:36]} Nc6 {[%emt 0:00:34]} 9. Nbxd4 {[%emt 0:07:12]} Nxd4 {[%emt 0:00:18]} 10. Nxd4 {[%emt 0:01:40]} a6 {[%emt 0:00:19]} 11. Bg5 {[%emt 0:05:47] C07: French Tarrasch: 3...c5, 4 Ngf3 and 4 exd5 Qxd5.} Qc5 {[%emt 0:11:21][%csl LRc4,LRg5]} 12. Bxf6 {[%emt 0:05:32] [#] Black must now prevent Nb3.} Qxc4 {[%emt 0:09:23]} 13. Bh4 {[%emt 0:13:14] [#]} ({But not} 13. Nc6 $2 Qd5 14. Qxd5 exd5 15. Rae1+ Be6 $19) 13... Bd7 $146 {[%emt 0:07:04]} (13... f6 $11 {was preferrable.}) ({Predecessor:} 13... Bc5 14. c3 O-O 15. Qh5 f6 16. b3 Qxc3 17. Rac1 Qxd4 18. Rfd1 Qb4 19. Rxc5 g6 20. a3 Qb6 21. Bxf6 gxh5 22. Rg5+ Kf7 23. Bd4 Qxb3 24. Rg7+ Ke8 {0-1 Tompa,J (2387)-Deak,F (2259) Zalakaros op 29th 2010 (4)}) 14. Qd2 {[%emt 0:04:09]} (14. c3 $14) 14... Bc5 {[%emt 0:17:32]} 15. Rad1 {[%emt 0:20:58][%cal Od4b3] Threatens to win with Nb3!} O-O {[%emt 0:06:12]} (15... Qxa2 $2 16. Nb3 O-O 17. Qxd7 $18) (15... f6 {simplifies} 16. b3 Qxd4 17. Qxd4 Bxd4 18. Rxd4 e5) 16. b3 {[%emt 0:02:59]} Qd5 {[%emt 0:01:27]} 17. Qf4 {[%emt 0:15:03]} (17. c4 $11 {remains equal.} Qh5 18. Bg3) 17... e5 {[%emt 0:20:03]} (17... f6 $17 18. c4 e5 19. cxd5 exf4) 18. Nf5 {[%emt 0:02:08]} (18. Qf3 $11 Bc6 19. Nxc6 Qxf3 20. gxf3 bxc6 21. Bg5) 18... Qe6 $15 {[%emt 0:01:07]} 19. Qd2 {[%emt 0:04:39]} Qxf5 {[%emt 0:11:30]} (19... Bb5 $15 20. c4 Qxf5 21. cxb5 axb5) 20. Qxd7 $11 {[%emt 0:00:11]} Qe4 {[%emt 0:00:35]} ({Don't take} 20... Qxc2 21. Rc1 (21. Qxb7 Qxa2 22. Rc1 Rab8 $17) 21... Qe4 22. Rxc5 $14) 21. Bg3 {[%emt 0:01:29]} Bd4 {[%emt 0:02:26]} 22. Rde1 {[%emt 0:02:48][%cal Bd1e1,Be1e5,Be5f5][%mdl 32]} Qxc2 {[%emt 0:02:16]} 23. Bxe5 {[%emt 0:00:09]} Bxe5 {[%emt 0:01:55]} 24. Rxe5 {[%emt 0:00:02]} b5 {[%emt 0:02:01]} 25. a4 {[%emt 0:01:54]} Rad8 {[%emt 0:01:04]} (25... Rfd8 $5 {[%cal Rd8d7]} 26. Qf5 Qxb3 27. axb5 g6 $15) 26. Qf5 {[%emt 0:00:52] The position is equal.} Qxf5 {[%emt 0:01:33]} 27. Rxf5 {[%emt 0:00:01]} bxa4 {[%emt 0:01:50]} 28. bxa4 {[%emt 0:00:02][%mdl 4096] Endgame KRR-KRR} Rd6 {[%emt 0:00:07]} 29. Rc1 {[%emt 0:01:16]} g6 {[%emt 0:00:48]} 30. Rfc5 {[%emt 0:00:23]} Rfd8 {[%emt 0:00:15] [#] ( -> ...Rd1+)} 31. Kf1 {[%emt 0:00:58]} Kf8 {[%emt 0:00:27]} 32. Rc6 {[%emt 0:00:23]} Ke7 {[%emt 0:00:29]} 33. Rxd6 {[%emt 0:00:36]} Rxd6 {[%emt 0:00:03] KR-KR} 34. Rc7+ {[%emt 0:00:13]} Ke6 {[%emt 0:00:09]} 35. Ke2 {[%emt 0:00:29]} h5 {[%emt 0:00:19]} 36. Ke3 {[%emt 0:00:36]} Rb6 {[%emt 0:00:39]} 37. Rc5 {[%emt 0:00:37]} Kd6 {[%emt 0:00:21]} 38. Ra5 {[%emt 0:00:30]} Kc6 {[%emt 0:01:20]} 39. Kd4 {[%emt 0:00:38]} Kd6 {[%emt 0:01:37]} 40. Rd5+ {[%emt 0:00:16]} Kc6 {[%emt 0:00:09]} 41. Ra5 {[%emt 0:30:06]} Rb4+ {[%emt 0:11:09]} 42. Kc3 {[%emt 0:00:00]} Rb6 {[%emt 0:00:26]} 43. Kd4 {[%emt 0:02:10]} Kb7 {[%emt 0:21:44]} 44. Kc3 {[%emt 0:00:30]} Rf6 {[%emt 0:00:30]} 45. f3 {[%emt 0:00:30]} Kb6 {[%emt 0:00:30] Weighted Error Value: White=0.18 (very precise) /Black=0.12 (very precise)} 1/2-1/2

[Event "DFMM-LV 2023"]
[Site "Braunfels"]
[Date "2023.06.09"]
[Round "2.35"]
[White "Bazzazi, Elnaz"]
[Black "Albayrak, Berrak"]
[Result "1/2-1/2"]
[Annotator "NA RC COMBH"]
[ECO "B09"]
[WhiteElo "1827"]
[BlackElo "1664"]
[PlyCount "35"]
[EventDate "2023.06.09"]
[EventType "team-tourn"]
[EventCountry "GER"]
[SourceTitle "playchess.com"]
[Source "ChessBase"]
[SourceQuality "1"]
[TimeControl "40/5400+30:1800+30"]

1. e4 {[%emt 0:00:21]} d6 {[%emt 0:00:00]} 2. d4 {[%emt 0:00:05]} Nf6 {[%emt 0:00:14]} 3. Nc3 {[%emt 0:00:08]} g6 {[%emt 0:00:13]} 4. f4 {[%emt 0:00:20]} Bg7 {[%emt 0:00:26]} 5. e5 {[%emt 0:01:19]} Nfd7 {[%emt 0:11:38]} 6. Nf3 {[%emt 0:00:12]} c5 {[%emt 0:01:50]} 7. e6 {[%emt 0:01:58]} fxe6 {[%emt 0:09:10]} 8. Ng5 {[%emt 0:00:32]} Nf6 {[%emt 0:05:08]} 9. dxc5 {[%emt 0:02:08]} Nc6 {[%emt 0:13:38]} 10. Bc4 {[%emt 0:13:49]} d5 {[%emt 0:06:07]} 11. Bd3 {[%emt 0:04:42]} Qa5 {[%emt 0:04:01]} 12. Bb5 {[%emt 0:16:33]} h6 {[%emt 0:18:24]} 13. Nf3 {[%emt 0:07:34]} Ne4 {[%emt 0:02:21]} 14. Bxc6+ {[%emt 0:08:40]} bxc6 {[%emt 0:00:13]} 15. Ne5 {[%emt 0:01:57]} Nxc3 {[%emt 0:03:30]} 16. Qd2 {[%emt 0:04:37]} Qxc5 {[%emt 0:03:16]} 17. bxc3 {[%emt 0:00:20]} Ba6 {[%emt 0:04:20]} 18. Qd1 {[%emt 0:34:15]} 1/2-1/2

[Event "DFMM-LV 2023"]
[Site "Braunfels"]
[Date "2023.06.09"]
[Round "2.36"]
[White "Prinzen, Siri Marleen"]
[Black "Von Herman, Brigitte"]
[Result "1/2-1/2"]
[Annotator "TA"]
[ECO "B13"]
[WhiteElo "1724"]
[BlackElo "1904"]
[PlyCount "28"]
[EventDate "2023.06.09"]
[EventType "team-tourn"]
[EventCountry "GER"]
[SourceTitle "playchess.com"]
[Source "ChessBase"]
[SourceQuality "1"]
[TimeControl "40/5400+30:1800+30"]

{[%evp 9,28,5,8,6,4,5,10,17,12,14,22,18,16,7,27,22,32,32,52,54,60]} 1. d4 {[%emt 0:00:03]} d5 {[%emt 0:00:10]} 2. Bf4 {[%emt 0:00:05]} c5 {[%emt 0:00:33]} 3. e3 {[%emt 0:00:06]} cxd4 {[%emt 0:00:21]} 4. exd4 {[%emt 0:00:07]} Nc6 {[%emt 0:00:36]} 5. c3 {[%emt 0:02:52]} Bf5 {[%emt 0:01:11]} 6. Nf3 {[%emt 0:02:29] B13: Caro-Kann: Exchange Variation and Panov-Botvinnik Attack.} e6 {[%emt 0:01:06]} 7. Nbd2 {[%emt 0:02:25]} Bd6 {[%emt 0:01:22]} 8. Bxd6 {[%emt 0:06:56] The position is equal.} Qxd6 {[%emt 0:00:43]} 9. Nh4 {[%emt 0:02:29]} Bg6 {[%emt 0:01:58]} 10. Nxg6 {[%emt 0:02:14]} hxg6 {[%emt 0:00:11]} 11. Nf3 {[%emt 0:00:50]} Nf6 {[%emt 0:03:50]} 12. Bd3 {[%emt 0:05:08] [#]} a6 $146 {[%emt 0:07:33]} ({Predecessor:} 12... Ne4 13. Qe2 f5 14. Bb5 O-O-O 15. O-O-O Kb8 16. Kb1 g5 17. Bxc6 Qxc6 18. Ne5 Qb6 {1-0 Tang,A (2439)-Khripachenko,A (2348) Wch Rapid Almaty 2022 (9)}) 13. Qe2 {[%emt 0:03:18]} Qf4 {[%emt 0:15:52]} 14. g3 {[%emt 0:08:14]} Qc7 {[%emt 0:01:15] Weighted Error Value: White=0.00 (flawless) /Black=0.08 (flawless)} 1/2-1/2

[Event "DFMM-LV 2023"]
[Site "Braunfels"]
[Date "2023.06.09"]
[Round "2.37"]
[White "Guder, Sibylle"]
[Black "Stark, Amalia"]
[Result "1-0"]
[Annotator "NA RC COMBH"]
[ECO "A21"]
[WhiteElo "1808"]
[BlackElo "1499"]
[PlyCount "105"]
[EventDate "2023.06.09"]
[EventType "team-tourn"]
[EventCountry "GER"]
[SourceTitle "playchess.com"]
[Source "ChessBase"]
[SourceQuality "1"]
[TimeControl "40/5400+30:1800+30"]

1. c4 {[%emt 0:00:03]} d6 {[%emt 0:00:23]} 2. g3 {[%emt 0:00:06]} f5 {[%emt 0:00:15]} 3. Bg2 {[%emt 0:00:07]} Nf6 {[%emt 0:00:16]} 4. Nc3 {[%emt 0:00:09]} g6 {[%emt 0:00:30]} 5. d3 {[%emt 0:01:01]} Bg7 {[%emt 0:00:34]} 6. e3 {[%emt 0:04:12]} c6 {[%emt 0:01:46]} 7. Nge2 {[%emt 0:01:42]} O-O {[%emt 0:02:02]} 8. O-O {[%emt 0:00:16]} e5 {[%emt 0:01:15]} 9. b4 {[%emt 0:02:07]} Be6 {[%emt 0:01:10]} 10. a4 {[%emt 0:00:49]} e4 {[%emt 0:04:54]} 11. Rb1 {[%emt 0:11:37]} Qe7 {[%emt 0:24:40]} 12. Ba3 {[%emt 0:23:11]} Ng4 {[%emt 0:18:02]} 13. c5 {[%emt 0:03:58]} d5 {[%emt 0:10:30]} 14. d4 {[%emt 0:06:37]} g5 {[%emt 0:03:37]} 15. h3 {[%emt 0:02:06]} Nf6 {[%emt 0:00:26]} 16. b5 {[%emt 0:01:21]} a6 {[%emt 0:02:17]} 17. Qb3 {[%emt 0:04:42]} Rf7 {[%emt 0:04:00]} 18. Bc1 {[%emt 0:07:18]} h5 {[%emt 0:01:47]} 19. Bd2 {[%emt 0:01:36]} axb5 {[%emt 0:01:00]} 20. axb5 {[%emt 0:27:32]} Nbd7 {[%emt 0:00:56]} 21. bxc6 {[%emt 0:00:00]} bxc6 {[%emt 0:00:10]} 22. Qb7 {[%emt 0:00:00]} Raf8 {[%emt 0:05:16]} 23. Qxc6 {[%emt 0:00:00]} Rd8 {[%emt 0:04:53]} 24. Na4 {[%emt 0:00:00]} Nb8 {[%emt 0:00:48]} 25. Qb5 {[%emt 0:00:00]} Bd7 {[%emt 0:00:24]} 26. Qb3 {[%emt 0:00:00]} Nc6 {[%emt 0:01:07]} 27. Nb6 {[%emt 0:00:00]} Be8 {[%emt 0:01:34]} 28. Nc3 {[%emt 0:00:00]} Bh6 {[%emt 0:00:14]} 29. Ncxd5 {[%emt 0:00:00]} Nxd5 {[%emt 0:01:02]} 30. Nxd5 {[%emt 0:00:00]} Qf8 {[%emt 0:00:45]} 31. Nb6 {[%emt 0:00:00]} Kh7 {[%emt 0:01:14]} 32. Qc2 {[%emt 0:00:00]} h4 {[%emt 0:01:17]} 33. g4 {[%emt 0:00:00]} fxg4 {[%emt 0:00:52]} 34. Bxe4+ {[%emt 0:00:29]} Kh8 {[%emt 0:00:22]} 35. hxg4 {[%emt 0:00:33]} Qe7 {[%emt 0:01:32]} 36. Bg2 {[%emt 0:02:25]} Rh7 {[%emt 0:01:20]} 37. Bc3 {[%emt 0:01:01]} Bg7 {[%emt 0:00:01]} 38. Qe4 {[%emt 0:00:20]} Qf8 {[%emt 0:01:42]} 39. Qf3 {[%emt 0:00:14]} Qg8 {[%emt 0:00:30]} 40. Nd5 {[%emt 0:02:31]} h3 {[%emt 0:00:30]} 41. Nf6 {[%emt 0:02:44]} Qe6 {[%emt 0:05:33]} 42. Nxh7 $18 {[%emt 0:01:40]} hxg2 {[%emt 0:00:17]} 43. Qxg2 {[%emt 0:01:35]} Kxh7 {[%emt 0:00:14]} 44. Rb6 {[%emt 0:01:47]} Qc8 {[%emt 0:02:39]} 45. Qe4+ {[%emt 0:02:55]} Kg8 {[%emt 0:01:10]} 46. Rc1 {[%emt 0:02:24]} Bd7 {[%emt 0:04:10]} 47. f3 {[%emt 0:00:36]} Re8 {[%emt 0:00:39]} 48. Qd5+ {[%emt 0:01:11]} Re6 {[%emt 0:00:44]} 49. Qxg5 {[%emt 0:02:13]} Kf7 {[%emt 0:00:49]} 50. d5 {[%emt 0:02:31]} Rg6 {[%emt 0:00:27]} 51. Qf4+ {[%emt 0:00:23]} Bf5 {[%emt 0:00:50]} 52. Rxc6 {[%emt 0:01:54]} Bf8 {[%emt 0:23:05]} 53. d6 {[%emt 0:17:04]} 1-0

[Event "DFMM-LV 2023"]
[Site "Braunfels"]
[Date "2023.06.09"]
[Round "2.38"]
[White "Alferova, Emily"]
[Black "Fock, Amina"]
[Result "0-1"]
[Annotator "NA RC COMBH"]
[ECO "D05"]
[WhiteElo "1612"]
[BlackElo "1836"]
[PlyCount "50"]
[EventDate "2023.06.09"]
[EventType "team-tourn"]
[EventCountry "GER"]
[SourceTitle "playchess.com"]
[Source "ChessBase"]
[SourceQuality "1"]
[TimeControl "40/5400+30:1800+30"]

1. d4 {[%emt 0:00:04]} Nf6 {[%emt 0:00:07]} 2. Nf3 {[%emt 0:00:21]} e6 {[%emt 0:00:17]} 3. Nbd2 {[%emt 0:02:13]} d5 {[%emt 0:00:16]} 4. e3 {[%emt 0:00:11]} c5 {[%emt 0:00:47]} 5. c3 {[%emt 0:00:58]} Nc6 {[%emt 0:00:15]} 6. Bd3 {[%emt 0:00:28]} Bd6 {[%emt 0:00:24]} 7. O-O {[%emt 0:01:26]} O-O {[%emt 0:00:18]} 8. dxc5 {[%emt 0:05:51]} Bxc5 {[%emt 0:00:11]} 9. e4 {[%emt 0:02:05]} Qc7 {[%emt 0:01:06]} 10. Qe2 {[%emt 0:28:19]} Bb6 {[%emt 0:10:30]} 11. e5 {[%emt 0:13:37]} Ng4 {[%emt 0:03:22]} 12. Bxh7+ {[%emt 0:04:30]} Kxh7 {[%emt 0:02:02]} 13. Ng5+ {[%emt 0:02:14]} Kg8 {[%emt 0:01:02]} 14. Qxg4 {[%emt 0:00:57]} Qxe5 {[%emt 0:01:06]} 15. Ndf3 {[%emt 0:17:54]} Qf5 {[%emt 0:06:14]} 16. Qxf5 {[%emt 0:09:45]} exf5 {[%emt 0:00:07]} 17. h4 {[%emt 0:02:51]} f6 {[%emt 0:05:42]} 18. Nh3 {[%emt 0:00:12]} d4 {[%emt 0:01:18]} 19. Bd2 {[%emt 0:03:45]} Be6 {[%emt 0:04:33]} 20. Nf4 {[%emt 0:01:40]} Bf7 {[%emt 0:01:06]} 21. Rfe1 {[%emt 0:00:36]} Rfe8 {[%emt 0:00:29]} 22. b3 {[%emt 0:00:31]} Re4 {[%emt 0:02:12]} 23. Rad1 {[%emt 0:00:59]} dxc3 {[%emt 0:00:43]} 24. Bc1 {[%emt 0:00:32]} Rae8 {[%emt 0:00:44]} 25. Ne2 {[%emt 0:00:27]} Rxe2 {[%emt 0:00:23]} 0-1